Workbook

Sheet Journal
B1: =Vereinsname -> Musikgesellschaft X | E1: Periode | F1: =Buchungsperiode -> 01.01.2022-31.12.2022 | J1: 10 | K1: 11 | L1: 12 | M1: 13 | N1: 14 | O1: 15 | P1: 16 | Q1: 17
A2: ="Erfolgskonto " & BuchungsJahr -> Erfolgskonto 2022 | F2: =TODAY() -> 2023-01-02 | H2: 20220041 | J2: Zahlkonto
A3: Analyse | B3: Buchungssatz | D3: =SUM(J3:Q3)-SUM(J5:Q5) -> -1468.599998 | E3: 1900-01-17 | F3: =CONCATENATE("Buchführung : ",Buchführung) -> Buchführung : Bucher Fritz | H3: Konto Saldi > | I3: Aus- | J3: 1116.5 | K3: 5341.100002 | L3: 2745.8 | M3: 559.4 | N3: 2650 | O3: 1200 | P3: 10000 | Q3: 9380
A4: Budgetposition | B4: Soll (von) | C4: (an) Haben | D4: Betrag | E4: wann | F4: Vorgang | G4: Typ | H4: BelegNr | I4: PM | J4: Raiffeisen | K4: Kasse V | L4: Post | M4: Kasse Fest | N4: Kasse PW | O4: Kasse Fa | P4: Kasse U | Q4: UBS
A5: Kontoeröffnung | B5: Übertrag | C5: Übertrag | D5: 0 | E5: 01.04.2020 | F5: Abschluss Vorjahr. | G5: XX | H5: 20220001 | I5: E+ | J5: 2347.5 | K5: 3778.7 | L5: 2745.8 | M5: 559.4 | N5: 3000 | O5: 1200 | P5: 10000 | Q5: 10830
A6: Betrieb übriges | B6: Kasse V | C6: Kreditor | D6: 234.1999969 | E6: 29.04.2022 | F6: Medien | G6: OU | H6: 20220007 | I6: - | K6: -234.1999969
A7: Passivmitgliederbeiträge* | B7: Debi-Rechnung | C7: Raiffeisen | D7: 20 | E7: 04.05.2022 | F7: Muster Michael Bremgarten | G7: PP | H7: 20220008 | I7: + | J7: 20
A8: Passivmitgliederbeiträge* | B8: Debi-Rechnung | C8: Raiffeisen | D8: 40 | E8: 04.05.2022 | F8: Muster Sonja Wohlerauen | G8: PP | H8: 20220009 | I8: + | J8: 40
A9: Passivmitgliederbeiträge* | B9: Debi-Rechnung | C9: Raiffeisen | D9: 30 | E9: 04.05.2022 | F9: Muster André Tegerig | G9: PP | H9: 20220010 | I9: + | J9: 30
A10: Notenbeschaffung | B10: Raiffeisen | C10: Kreditor | D10: 578 | E10: 05.05.2022 | F10: Noteneinkauf | G10: OU | H10: 20220011 | I10: - | J10: -578
A11: Mietausgaben | B11: Raiffeisen | C11: Kredi-Rechnung | D11: 600 | E11: 05.05.2022 | F11: Lokalmiete | G11: OU | H11: 20220012 | I11: - | J11: -600
A12: Instumente | B12: Raiffeisen | C12: Kreditor | D12: 143 | E12: 05.05.2022 | F12: Reperatur Instrumente | G12: OU | H12: 20220014 | I12: - | J12: -143
A13: Artikelverkauf* | B13: Verkauf | C13: Kasse V | D13: 7 | E13: 04.05.2022 | F13: Becher Keramik | G13: AV2 | H13: 20220017 | I13: + | K13: 7
A14: Artikelverkauf* | B14: Verkauf | C14: Kasse V | D14: 89.59999847 | E14: 05.05.2022 | F14: Schaal | G14: AV2 | H14: 20220018 | I14: + | K14: 89.59999847
A15: Aktivmitgliederbeiträge* | B15: Mitgliederbeitrag | C15: Kasse V | D15: 100 | E15: 14.12.2022 | F15: Aktiver Tobi Thun | G15: PA | H15: 20220019 | I15: + | K15: 100
A16: Auftrittsgagen | B16: Gage | C16: Kasse V | D16: 1200 | E16: 14.12.2022 | F16: Auftrittsgage | G16: EI | H16: 20220021 | I16: + | K16: 1200
A17: Proben A | B17: Kasse PW | C17: Barzahlung | D17: 350 | E17: 15.12.2022 | F17: Lokalmiete | G17: OU | H17: 20220022 | I17: - | N17: -350
A18: Reisekosten A | B18: UBS | C18: Kredi-Rechnung | D18: 1450 | E18: 29.12.2022 | F18: Car Reisen Surber | G18: OU | H18: 20220030 | I18: - | Q18: -1450
A19: Aktivmitgliederbeiträge* | B19: Mitgliederbeitrag | C19: Kasse V | D19: 100 | E19: 30.12.2022 | F19: Küttel Martin Interlaken | G19: PA | H19: 20220032 | I19: + | K19: 100
A20: Aktivmitgliederbeiträge* | B20: Mitgliederbeitrag | C20: Kasse V | D20: 100 | E20: 30.12.2022 | F20: Meier Hella Rümlingen | G20: PA | H20: 20220033 | I20: + | K20: 100
A21: Aktivmitgliederbeiträge* | B21: Mitgliederbeitrag | C21: Kasse V | D21: 100 | E21: 30.12.2022 | F21: Thomann Stefan Bremervörde | G21: PA | H21: 20220035 | I21: + | K21: 100
A22: Aktivmitgliederbeiträge* | B22: Mitgliederbeitrag | C22: Kasse V | D22: 100 | E22: 30.12.2022 | F22: Müller Felix Lenzburg | G22: PA | H22: 20220037 | I22: + | K22: 100

Sheet Offen
B1: O-Buch | J1: Zahlkonto
A2: offene Kreditoren | B2: 0 | C2: 0 | D2: offene Debitoren | J2: 10 | K2: 11 | L2: 12 | M2: 13 | N2: 14 | O2: 15 | P2: 16 | Q2: 17
A3: Budgetposition | B3: Soll (von) | C3: (an) Haben | D3: Betrag | E3: wann | F3: Vorgang | G3: Typ | H3: BelegNr | I3: PM | J3: =JourKt1 -> Raiffeisen | K3: =JourKt2 -> Kasse V | L3: =JourKt3 -> Post | M3: =JourKt4 -> Kasse Fest | N3: =JourKt5 -> Kasse PW | O3: =JourKt6 -> Kasse Fa | P3: =JourKt7 -> Kasse U | Q3: =JourKt8 -> UBS
A4: Fest Bauten | B4: Kasse Fest | C4: Kredi-Rechnung | D4: 154 | E4: 05.05.2022 | F4: Transport | G4: OU | H4: 20220016 | I4: - | M4: -154

Sheet Budget
B1: ="Budget " & Vereinsname -> Budget Musikgesellschaft X | J1: 2
A2: =Buchungsperiode -> 01.01.2022-31.12.2022 | C2: Buchführung: | D2: =Buchführung -> Bucher Fritz | G2: aufdatiert am 02.01.2023
A3: Budgetdaten löschen
A4: Erfolgskonto | B4: Abschluss | D4: ="laufendes Budget " & BuchungsJahr -> laufendes Budget 2022 | G4: Kontovorwahl
A5: Budgetpositionen | B5: =BuchungsJahr-2 -> 2020 | C5: =BuchungsJahr-1 -> 2021 | D5: genehmigt | E5: Ist | F5: Restbudget | G5: Soll | H5: Haben
A6: Einnahmen - Ausgaben | B6: =B7-B37 -> 3100 | C6: =C7-C37 -> 233 | D6: =D7-D37 -> -3141 | E6: =E7-E37 -> -1468.599976 | F6: =F7-F37 -> 10876.40002
A7: Total Einnahmen | B7: 3100 | C7: 883 | D7: 12763 | E7: 1886.599976 | F7: =D7-E7 -> 10876.40002
A8: Beiträge | B8: =SUM(B9:B13) -> 0 | C8: =SUM(C9:C13) -> 0 | D8: =SUM(D9:D13) -> 4200 | E8: =SUM(E9:E13) -> 540 | F8: =D8-E8 -> 3660
A9: Aktivmitgliederbeiträge* | B9: 0 | C9: 0 | D9: 3500 | E9: 500 | F9: 3000 | G9: Mitgliederbeitrag | H9: Kasse V
A10: Passivmitgliederbeiträge* | B10: 0 | C10: 0 | D10: 700 | E10: 40 | F10: 660 | G10: Debi-Rechnung | H10: Raiffeisen
A11: Sponsoren* | B11: 0 | C11: 0 | D11: 0 | E11: 0 | F11: 0 | G11: Debi-Rechnung | H11: Raiffeisen
A12: Uniform E | B12: 0 | C12: 0 | D12: 0 | E12: 0 | F12: 0 | G12: Bareinnahme | H12: Kasse V
A13: Bankzinsen | B13: 0 | C13: 0 | D13: 0 | E13: 0 | F13: 0 | G13: Bareinnahme | H13: Kasse V
A14: Spenden | B14: =SUM(B16:B17) -> 102.4 | C14: =SUM(C16:C17) -> 106 | D14: =SUM(D16:D17) -> 123 | E14: =SUM(E16:E17) -> 50 | F14: =D14-E14 -> 73
A15: Gönner* | B15: 0 | C15: 0 | D15: 0 | E15: 0 | F15: 0 | G15: Bareinnahme | H15: Kasse V
A16: Private Spenden | B16: 102.4 | C16: 86 | D16: 123 | E16: 0 | F16: 123 | G16: Bareinnahme | H16: Kasse V
A17: Spenden übrige | B17: 0 | C17: 20 | D17: 0 | E17: 50 | F17: -50 | G17: Bareinnahme | H17: Raiffeisen
A18: Auftritte, Anlässe | B18: =SUM(B20:B27) -> 583 | C18: =SUM(C20:C27) -> 1334 | D18: =SUM(D20:D27) -> 4950 | E18: =SUM(E20:E27) -> 1296.599998 | F18: =SUM(F20:F27) -> 3653.400002
A19: Proben | B19: 0 | C19: 0 | D19: 689 | E19: 0 | F19: 689 | G19: Gage | H19: Kasse V
A20: Auftrittsgagen | B20: 500 | C20: 400 | D20: 400 | E20: 1200 | F20: -800 | G20: Gage | H20: Kasse V
A21: Anlassliste E | B21: 45 | C21: 90 | D21: 0 | E21: 0 | F21: 0 | G21: Mitgliederbeitrag | H21: Kasse V
A22: Artikelverkauf* | B22: 38 | C22: 844 | D22: 700 | E22: 96.59999847 | F22: 603.4000015 | G22: Verkauf | H22: Kasse V
A23: Vergütungen | B23: 0 | C23: 0 | D23: 200 | E23: 0 | F23: 200 | G23: Spende | H23: Kasse V
A24: Frühlingsfest E | B24: 0 | C24: 0 | D24: 0 | E24: 0 | F24: 0 | G24: Bareinnahme | H24: Kasse V
A25: Vereinsreise E | B25: 0 | C25: 0 | D25: 2500 | E25: 0 | F25: 2500 | G25: Bareinnahme | H25: Kasse V
A26: Musiktag E | B26: 0 | C26: 0 | D26: 100 | E26: 0 | F26: 100 | G26: Debitor | H26: Raiffeisen
A27: Anlasseinnahmen übrige | B27: 0 | C27: 0 | D27: 1050 | E27: 0 | F27: 1050 | G27: Bareinnahme | H27: Raiffeisen
A28: Fest Einnahmen | B28: =SUM(B29:B36) -> 580.3 | C28: =SUM(C29:C36) -> 453.2 | D28: =SUM(D29:D36) -> 18594 | E28: =SUM(E29:E36) -> 0 | F28: =SUM(F29:F36) -> 3490
A29: Fest Getränkebar E | B29: 0 | C29: 0 | D29: 500 | E29: 0 | F29: 500 | G29: Bareinnahme | H29: Kasse Fest
A30: Fest Trinkgeld | B30: 0 | C30: 0 | D30: 300 | E30: 0 | F30: 300 | G30: Bareinnahme | H30: Kasse Fest
A31: Fest Kaffeebar | B31: 380.3 | C31: 453.2 | D31: 400 | E31: 0 | F31: 400 | G31: Bareinnahme | H31: Kasse Fest
A32: Fest Artikelstand E | B32: 0 | C32: 0 | D32: 600 | E32: 0 | F32: 600 | G32: Bareinnahme | H32: Kasse Fest
A33: Fest Essensbon E | B33: 200 | C33: 0 | D33: 200 | E33: 0 | F33: 200 | G33: Bareinnahme | H33: Kasse Fest
A34: Fest Eintritte | B34: 0 | C34: 0 | D34: 450 | E34: 0 | F34: 450 | G34: Bareinnahme | H34: Kasse Fest
A35: Fest übrige Einnahmen | B35: 0 | C35: 0 | D35: 240 | E35: 0 | F35: 240 | G35: Debitor | H35: Kasse Fest
A36: Inserenten* | B36: 0 | C36: 0 | D36: 15904 | E36: 0 | F36: 800 | G36: Debi-Rechnung | H36: Raiffeisen
A37: Total Ausgaben | B37: 0 | C37: 650 | D37: 15904 | E37: 3355.199951 | F37: 0
A38: Verwaltung | B38: =SUM(B39:B46) -> 0 | C38: =SUM(C39:C46) -> 650 | D38: =SUM(D39:D46) -> 3467 | E38: =SUM(E39:E46) -> 600 | F38: 2867
A39: Ausbildner Entschädigung | B39: 0 | C39: 0 | D39: 787 | E39: 0 | F39: 787 | G39: Raiffeisen | H39: Kredi-Rechnung
A40: Ausbildungsmaterial | B40: 0 | C40: 0 | D40: 600 | E40: 0 | F40: 600 | G40: Raiffeisen | H40: Kredi-Rechnung
A41: Mietausgaben | B41: 0 | C41: 0 | D41: 700 | E41: 600 | F41: 100 | G41: Raiffeisen | H41: Kredi-Rechnung
A42: Büromaterial | B42: 0 | C42: 0 | D42: 150 | E42: 0 | F42: 150 | G42: Kasse V | H42: Barzahlung
A43: Porti Versand | B43: 0 | C43: 0 | D43: 300 | E43: 0 | F43: 300 | G43: Kasse V | H43: Barzahlung
A44: Spesen Vorstand | B44: 0 | C44: 0 | D44: 100 | E44: 0 | F44: 100 | G44: Post | H44: PostKarte
A45: Vereine/Verbände A | B45: 0 | C45: 0 | D45: 230 | E45: 0 | F45: 230 | G45: Raiffeisen | H45: Kreditor
A46: Hauptversammlung A | B46: 0 | C46: 650 | D46: 600 | E46: 0 | F46: 600 | G46: Post | H46: PostKarte
A47: Betrieb A | B47: =SUM(B48:B55) -> 0 | C47: =SUM(C48:C55) -> 0 | D47: 3737 | E47: 955.1999969 | F47: 2781.800003
A48: Uniform A | B48: 0 | C48: 0 | D48: 1300 | E48: 0 | F48: 1300 | G48: Raiffeisen | H48: Kredi-Rechnung
A49: Notenbeschaffung | B49: 0 | C49: 0 | D49: 467 | E49: 578 | F49: -111 | G49: Raiffeisen | H49: Kreditor
A50: Instumente | B50: 0 | C50: 0 | D50: 400 | E50: 143 | F50: 257 | G50: Raiffeisen | H50: Kreditor
A51: Steuern | B51: 0 | C51: 0 | D51: 340 | E51: 0 | F51: 340 | G51: Raiffeisen | H51: Kreditor
A52: Versicherungen | B52: 0 | C52: 0 | D52: 380 | E52: 0 | F52: 380 | G52: Raiffeisen | H52: Kreditor
A53: Vergaben, Präsente | B53: 0 | C53: 0 | D53: 350 | E53: 0 | F53: 350 | G53: Kasse V | H53: Kreditor
A54: Bankspesen | B54: 0 | C54: 0 | D54: 200 | E54: 0 | F54: 200 | G54: Raiffeisen | H54: Kreditor
A55: Betrieb übriges | B55: 0 | C55: 0 | D55: 300 | E55: 234.1999969 | F55: 65.80000305 | G55: Kasse V | H55: Kreditor
A56: Auftritte Anlässe | B56: =SUM(B57:B64) -> 0 | C56: =SUM(C57:C64) -> 0 | D56: =SUM(D57:D64) -> 4940 | E56: 1800 | F56: 3140
A57: Artikeleinkauf* | B57: 0 | C57: 0 | D57: 1200 | E57: 0 | F57: 1200 | G57: Raiffeisen | H57: Kreditor
A58: Reisekosten A | B58: 0 | C58: 0 | D58: 600 | E58: 1450 | F58: -850 | G58: Raiffeisen | H58: Kreditor
A59: Verpflegungsspesen | B59: 0 | C59: 0 | D59: 300 | E59: 0 | F59: 300 | G59: Post | H59: PostKarte
A60: Frühlingsfest A | B60: 0 | C60: 0 | D60: 480 | E60: 0 | F60: 480 | G60: Raiffeisen | H60: Kreditor
A61: Proben A | B61: 0 | C61: 0 | D61: 360 | E61: 350 | F61: 10 | G61: Kasse PW | H61: Barzahlung
A62: Vereinsreise A | B62: 0 | C62: 0 | D62: 1200 | E62: 0 | F62: 1200 | G62: Raiffeisen | H62: Kreditor
A63: Musiktag A | B63: 0 | C63: 0 | D63: 500 | E63: 0 | F63: 500 | G63: Kasse V | H63: Kreditor
A64: übrige Anlassausgaben | B64: 0 | C64: 0 | D64: 300 | E64: 0 | F64: 300 | G64: Kasse V | H64: Kreditor
A65: Fest Ausgaben | B65: =SUM(B66:B73) -> 0 | C65: =SUM(C66:C73) -> 0 | D65: =SUM(D66:D73) -> 3760 | E65: 0 | F65: 3760
A66: Fest Helferanlass | B66: 0 | C66: 0 | D66: 700 | E66: 0 | F66: 700 | G66: Kasse Fest | H66: Barzahlung
A67: Fest Bauten | B67: 0 | C67: 0 | D67: 400 | E67: 0 | F67: 400 | G67: Kasse Fest | H67: Kreditor
A68: Fest Wareneinkauf | B68: 0 | C68: 0 | D68: 700 | E68: 0 | F68: 700 | G68: Kasse Fest | H68: Kreditor
A69: Fest Abgaben, Mieten | B69: 0 | C69: 0 | D69: 350 | E69: 0 | F69: 350 | G69: Post | H69: Kreditor
A70: Fest Deko, Werbung | B70: 0 | C70: 0 | D70: 260 | E70: 0 | F70: 260 | G70: Kasse Fest | H70: Kreditor
A71: Fest Sicherheit, Schutz | B71: 0 | C71: 0 | D71: 450 | E71: 0 | F71: 450 | G71: Kasse Fest | H71: Kreditor
A72: Fest Medien, Kommunikation | B72: 0 | C72: 0 | D72: 500 | E72: 0 | F72: 500 | G72: Kasse Fest | H72: Kreditor
A73: Fest übrige Ausgaben | B73: 0 | C73: 0 | D73: 400 | E73: 0 | F73: 400 | G73: Raiffeisen | H73: Kredi-Rechnung

Sheet Bilanz
B1: =CONCATENATE(Vereinsname, " / ", Buchungsperiode) -> Musikgesellschaft X / 01.01.2022-31.12.2022 | H1: aufdatiert am 02.01.2023
A2: ="Bilanz " & BuchungsJahr -> Bilanz 2022 | G2: ="Erfolgsrechnung " & BuchungsJahr -> Erfolgsrechnung 2022
A3: Bilanzsumme in Fr. | B3: =B4+B18 -> 36162.90002 | D3: Bilanzsumme in Fr. | E3: =E5+E10 -> 36162.90002 | G3: Verlust | H3: =IF(K4<H4,H4-K4,0) -> 1468.599976 | J3: Gewinn | K3: =IF(K4>H4,K4-H4,0) -> 0
A4: Aktive | B4: =B5+B18 -> 36162.90002 | D4: Passive | E4: =E5+E10 -> 36162.90002 | G4: =Budget!A37 -> Total Ausgaben | H4: =Budget!E37 -> 3355.199951 | J4: =Budget!A7 -> Total Einnahmen | K4: =Budget!E7 -> 1886.599976
A5: Umlaufvermögen | B5: =SUM(B6:B17) -> 36162.90002 | D5: Fremdkapital | E5: =SUM(E6:E9) -> 0 | G5: =Budget!A38 -> Verwaltung | H5: =Budget!E38 -> 600 | J5: =Budget!A8 -> Beiträge | K5: =Budget!E8 -> 540
A6: =JourKt1 -> Raiffeisen | B6: =JourK1 -> 1116.5 | D6: offene Kreditoren | E6: =oKredi -> 0 | G6: =Budget!A39 -> Ausbildner Entschädigung | H6: =Budget!E39 -> 0 | J6: =Budget!A9 -> Aktivmitgliederbeiträge* | K6: =Budget!E9 -> 500
A7: =JourKt2 -> Kasse V | B7: =JourK2 -> 5341.100002 | D7: Rückstellungen | G7: =Budget!A40 -> Ausbildungsmaterial | H7: =Budget!E40 -> 0 | J7: =Budget!A10 -> Passivmitgliederbeiträge* | K7: =Budget!E10 -> 40
A8: =JourKt3 -> Post | B8: =JourK3 -> 2745.8 | D8: übriges Fremdkapital | E8: 0 | G8: =Budget!A41 -> Mietausgaben | H8: =Budget!E41 -> 600 | J8: =Budget!A11 -> Sponsoren* | K8: =Budget!E11 -> 0
A9: =JourKt4 -> Kasse Fest | B9: =JourK4 -> 559.4 | D9: Rechnungsabgrenzung | E9: 0 | G9: =Budget!A42 -> Büromaterial | H9: =Budget!E42 -> 0 | J9: =Budget!A12 -> Uniform E | K9: =Budget!E12 -> 0
A10: =JourKt5 -> Kasse PW | B10: =JourK5 -> 2650 | D10: Eigenkapital | E10: =SUM(E11:E13) -> 36162.90002 | G10: =Budget!A43 -> Porti Versand | H10: =Budget!E43 -> 0 | J10: =Budget!A13 -> Bankzinsen | K10: =Budget!E13 -> 0
A11: =JourKt6 -> Kasse Fa | B11: =JourK6 -> 1200 | D11: Reinvermögen | E11: =B4-E13-E12-E5 -> 37631.5 | G11: =Budget!A44 -> Spesen Vorstand | H11: =Budget!E44 -> 0 | J11: =Budget!A14 -> Spenden | K11: =Budget!E14 -> 50
A12: =JourKt7 -> Kasse U | B12: =JourK7 -> 10000 | D12: Rücklagen | E12: 0 | G12: =Budget!A45 -> Vereine/Verbände A | H12: =Budget!E45 -> 0 | J12: =Budget!A15 -> Gönner* | K12: =Budget!E15 -> 0
A13: =JourKt8 -> UBS | B13: =JourK8 -> 9380 | D13: Erfolg (Gewinn oder Verlust) | E13: =IF(K3>H3,K3,H3*-1) -> -1468.599976 | G13: =Budget!A46 -> Hauptversammlung A | H13: =Budget!E46 -> 0 | J13: =Budget!A16 -> Private Spenden | K13: =Budget!E16 -> 0
A14: offene Debitoren | B14: =oDebi -> 0 | G14: =Budget!A47 -> Betrieb A | H14: =Budget!E47 -> 955.1999969 | J14: =Budget!A17 -> Spenden übrige | K14: =Budget!E17 -> 50
A15: übrige Vorderungen | B15: 0 | D15: die gelb markierten Felder müssen manuell ausgefüllt werden | G15: =Budget!A48 -> Uniform A | H15: =Budget!E48 -> 0 | J15: =Budget!A18 -> Auftritte, Anlässe | K15: =Budget!E18 -> 1296.599998
A16: Warenlager | B16: =F_Artikel!G2 -> 3170.10002 | G16: =Budget!A49 -> Notenbeschaffung | H16: =Budget!E49 -> 578 | J16: =Budget!A19 -> Proben | K16: =Budget!E19 -> 0
A17: Rechnungsabgrenzung | B17: 0 | G17: =Budget!A50 -> Instumente | H17: =Budget!E50 -> 143 | J17: =Budget!A20 -> Auftrittsgagen | K17: =Budget!E20 -> 1200
A18: Anlagevermögen | B18: =SUM(B19:B22) -> 0 | G18: =Budget!A51 -> Steuern | H18: =Budget!E51 -> 0 | J18: =Budget!A21 -> Anlassliste E | K18: =Budget!E21 -> 0
A19: Immobilien | B19: 0 | D19: Angaben für die Steuererklärung | G19: =Budget!A52 -> Versicherungen | H19: =Budget!E52 -> 0 | J19: =Budget!A22 -> Artikelverkauf* | K19: =Budget!E22 -> 96.59999847
A20: Mobilien | B20: 0 | D20: Verwaltungskosten | E20: =H6+H7+H8+H11+H9 -> 600 | G20: =Budget!A53 -> Vergaben, Präsente | H20: =Budget!E53 -> 0 | J20: =Budget!A23 -> Vergütungen | K20: =Budget!E23 -> 0
A21: Instrumente | B21: 0 | D21: Überschuss Mitgliederbeiträge | E21: =E22+K10-E20 -> -60 | G21: =Budget!A54 -> Bankspesen | H21: =Budget!E54 -> 0 | J21: =Budget!A24 -> Frühlingsfest E | K21: =Budget!E24 -> 0
A22: sonstige Vermögen | B22: 0 | D22: Mitgliederbeiträge | E22: =K6+K7 -> 540 | G22: =Budget!A55 -> Betrieb übriges | H22: =Budget!E55 -> 234.1999969 | J22: =Budget!A25 -> Vereinsreise E | K22: =Budget!E25 -> 0
D23: Reingewinn | E23: =K3-K8-K9-K17 -> -1200 | G23: =Budget!A56 -> Auftritte Anlässe | H23: =Budget!E56 -> 1800 | J23: =Budget!A26 -> Musiktag E | K23: =Budget!E26 -> 0
G24: =Budget!A57 -> Artikeleinkauf* | H24: =Budget!E57 -> 0 | J24: =Budget!A27 -> Anlasseinnahmen übrige | K24: =Budget!E27 -> 0
A25: Die gewählten Revisoren bestätigen die Richtigkeit der Buchhaltung | G25: =Budget!A58 -> Reisekosten A | H25: =Budget!E58 -> 1450 | J25: =Budget!A28 -> Fest Einnahmen | K25: =Budget!E28 -> 0
A26: =CONCATENATE("Sie visieren die Buchführung von ",Buchführung) -> Sie visieren die Buchführung von Bucher Fritz | G26: =Budget!A59 -> Verpflegungsspesen | H26: =Budget!E59 -> 0 | J26: =Budget!A29 -> Fest Getränkebar E | K26: =Budget!E29 -> 0
A27: Name | B27: Datum | D27: Unterschrift | G27: =Budget!A60 -> Frühlingsfest A | H27: =Budget!E60 -> 0 | J27: =Budget!A30 -> Fest Trinkgeld | K27: =Budget!E30 -> 0
A28: Revisor(in) 1: | G28: =Budget!A61 -> Proben A | H28: =Budget!E61 -> 350 | J28: =Budget!A31 -> Fest Kaffeebar | K28: =Budget!E31 -> 0
A29: =Revisor1 -> Revisor Arnold | G29: =Budget!A62 -> Vereinsreise A | H29: =Budget!E62 -> 0 | J29: =Budget!A32 -> Fest Artikelstand E | K29: =Budget!E32 -> 0
A30: Revisor(in) 2: | G30: =Budget!A63 -> Musiktag A | H30: =Budget!E63 -> 0 | J30: =Budget!A33 -> Fest Essensbon E | K30: =Budget!E33 -> 0
A31: =Revisor2 -> Revisorin Bettina | G31: =Budget!A64 -> übrige Anlassausgaben | H31: =Budget!E64 -> 0 | J31: =Budget!A34 -> Fest Eintritte | K31: =Budget!E34 -> 0
A32: Revisor(in) 3: | G32: =Budget!A65 -> Fest Ausgaben | H32: =Budget!E65 -> 0 | J32: =Budget!A35 -> Fest übrige Einnahmen | K32: =Budget!E35 -> 0
A33: =Revisor3 -> Revisor 3 | G33: =Budget!A66 -> Fest Helferanlass | H33: =Budget!E66 -> 0 | J33: =Budget!A36 -> Inserenten* | K33: =Budget!E36 -> 0
A34: Revisor(in) 4: | G34: =Budget!A67 -> Fest Bauten | H34: =Budget!E67 -> 0
A35: =Revisor4 -> Revisor 4 | G35: =Budget!A68 -> Fest Wareneinkauf | H35: =Budget!E68 -> 0
G36: =Budget!A69 -> Fest Abgaben, Mieten | H36: =Budget!E69 -> 0
G37: =Budget!A70 -> Fest Deko, Werbung | H37: =Budget!E70 -> 0
G38: =Budget!A71 -> Fest Sicherheit, Schutz | H38: =Budget!E71 -> 0
G39: =Budget!A72 -> Fest Medien, Kommunikation | H39: =Budget!E72 -> 0
G40: =Budget!A73 -> Fest übrige Ausgaben | H40: =Budget!E73 -> 0

Sheet F_Artikel
B1: Warenlager (Fan-Artikel) | G1: 7 | H1: 8 | I1: 9 | J1: 10 | K1: 11
F2: Summen | G2: =SUM(G5:G82) -> 3170.10002 | H2: =SUM(H4:H82) -> 6039.200031
A3: Bezeichnung | B3: ArtikelNr | C3: Lieferant | D3: Epreis | E3: Vpreis | F3: Bestand10 | G3: L Wert | H3: V Wert | I3: verkauft | J3: eingekauft | K3: Gewinn
A4: Div. Artikel (ohne Nachführung) | B4: 0 | C4: diese Zeile nicht löschen | D4: 0 | E4: 0 | F4: D | G4: 0 | H4: 123 | I4: 0 | J4: 0 | K4: 0
A5: T-Shirt rot, Langarm, Funktional | B5: 200 | C5: Unikat-Druck GmbH | D5: 12.5 | E5: 35.70000076 | F5: 80 | G5: 1000 | H5: 2856.000061 | I5: 41 | J5: 121 | K5: 951.2
A6: T-Shirt rot, Kurzarm, Baumwolle | B6: 3601 | C6: Werbe-Shirt AG | D6: 12.69999981 | E6: 17.5 | F6: 60 | G6: 761.9999886 | H6: 1050 | I6: 10 | J6: 70 | K6: 48
A7: Schaal | B7: 34.223 | C7: Handweberei Tessanda Plaz d’Ora 14 7536 Sta. Maria Tel. +41 81 858 51 26 allegra@tessanda.ch | D7: 33.20000076 | E7: 44.79999924 | F7: 39 | G7: 1294.80003 | H7: 1747.19997 | I7: 21 | J7: 60 | K7: 243.6
A8: Vereins Pin | B8: P1 | C8: Funny Pin GmbH | D8: 0.8000000119 | E8: 2 | F8: 100 | G8: 80.00000119 | H8: 200 | I8: 100 | J8: 200 | K8: 120
A9: Becher Keramik | B9: 55744 | C9: Werbeartikel AG | D9: 1.850000024 | E9: 3.5 | F9: 18 | G9: 33.30000043 | H9: 63 | I9: 17 | J9: 35 | K9: 28.05

Sheet Appell
B1: Titel einfügen | D1: Tot | E1: =SUM(E4:E84) -> 2 | F1: 0 | G1: 0 | H1: 0 | I1: 0 | J1: 0 | K1: 0 | L1: 0 | M1: 0 | N1: 0 | O1: 0 | P1: 0 | Q1: 0 | R1: 0 | S1: 0 | T1: 0 | U1: 0 | V1: 0 | W1: 0 | X1: 0 | Y1: 0 | Z1: 0 | AA1: 0 | AB1: 0 | AC1: 0 | AD1: 0 | AE1: 0 | AF1: 0 | AG1: 0 | AH1: 0 | AI1: 0 | AJ1: 0 | AK1: 0 | AL1: 0 | AM1: 0 | AN1: 0 | AO1: 0 | AP1: 0 | AQ1: 0 | AR1: 0 | AS1: 0 | AT1: 0 | AU1: 0 | AV1: 0 | AW1: 0 | AX1: 0 | AY1: 0
A2: Appell | D2: =SUM(E1:AY1) -> 2 | E2: Probe
A3: Name | B3: Vorname | C3: Ort | E3: 14.12.
A4: Maler | B4: Tobi | C4: Thun | D4: =SUM(E4:BB4) -> 1 | E4: 1
A5: Meier | B5: Hella | C5: Rümlingen | D5: =SUM(E5:BB5) -> 0
A6: Müller | B6: Felix | C6: Lenzburg | D6: =SUM(E6:BB6) -> 1 | E6: 1

Sheet V_Anlass
A1: Gönner Apéro | B1: Status | C1: angemeldet | D1: bezahlt | E1: verbucht | F1: Betrag | G1: Belegnr | H1: Zahlkonto
A2: AXA Winterthur Hauptagentur
A3: Festbauten
A4: Generalo Versicherungen
A5: Horst AG
A6: Baustein AG | B6: bezahlt | C6: 02.01.2023 | D6: 02.01.2023 | F6: 45 | H6: Kasse V
A7: Ammacher Paul Thun
A8: Gönner Christine Bern Süd
A9: Gönner Kurt Lacomba
A10: Gönner Verena Rümlang
A11: Meissner Mathias Bern

Sheet Aktive
B1: Vorname | C1: Telefon | D1: Handy | E1: Strasse | F1: Plz | G1: Ort | H1: Geburtstag | I1: E-Mail | J1: Betrag | K1: Zahldatum | L1: Beitritt | M1: Typ | N1: Charge | O1: Beruf | P1: Ff7 | Q1: Firma | R1: Buchungstext | S1: briefliche Anrede
A2: Küttel | B2: Roger | C2: +4144 799 19 52 | E2: Werk-Strasse 12 | F2: 8627 | G2: Grüningen ZH | H2: 02.01.1993 | J2: 100 | L2: 05.05.2018 | M2: Aktive | O2: Mechaniker | Q2: Maschinenbau AluAG | R2: Küttel Roger Grüningen ZH
A3: Maler | B3: Tobi | C3: 0 | D3: 081 233 456 | E3: Parade Platz 27 | F3: 6800 | G3: Thun | H3: 05.03.1987 | I3: schmied-tobi@hotmail.com | J3: 100 | K3: 14.12.2022 | L3: 22.10.1999 | M3: Aktive | O3: Schweisser | R3: Maler Tobi Thun | S3: Sehr geehrter Herr
A4: Meier | B4: Hella | C4: 044 444 44 44 | D4: 078 456 67 89 | E4: Bahnhofstr. 4 | F4: 4444 | G4: Rümlingen | H4: 11.09.1993 | I4: exhella@world.com | J4: 100 | K4: 30.12.2022 | L4: 2015 | M4: Aktive | O4: Service Assistent | R4: Meier Hella Rümlingen | S4: Guten Tag, Herr
A5: Müller | B5: Felix | C5: 033 333 33 33 | D5: 079 452 61 41 | E5: Anfangstr. 1 | F5: 1111 | G5: Lenzburg | H5: 04.10.1993 | I5: must.ant@world.com | J5: 100 | K5: 30.12.2022 | L5: 2013 | M5: Aktive | O5: Keycount Manager | R5: Müller Felix Lenzburg | S5: Sehr geehrter Herr
A6: Küttel | B6: Martin | C6: +4133 822 10 6 | E6: Waldeggstrasse 60 | F6: 3800 | G6: Interlaken | H6: 08.05.1949 | J6: 100 | K6: 30.12.2022 | M6: Aktive | R6: Küttel Martin Interlaken | S6: Guten Tag, Herr
A7: Thomann | B7: Stefan | C7: 04761 74 65 8 | E7: Gnattenbergstr. 17 | F7: 27432 | G7: Bremervörde | H7: 30.12.1988 | J7: 100 | K7: 30.12.2022 | L7: 31.12.2022 | M7: Aktive | O7: Monteur | R7: Thomann Stefan Bremervörde | S7: Sehr geehrter Herr

Sheet Passive
A1: Nachname | B1: Vorname | C1: Telefon | D1: Handy | E1: Strasse | F1: Plz | G1: Ort | H1: Geburtstag | I1: E-Mail | J1: Betrag | K1: Zahldatum | L1: Spende | M1: Firma | N1: FF5 | O1: FF6 | P1: FF7 | Q1: FF8 | R1: Buchungstext | S1: Anrede
A2: Muster | B2: Michael | E2: Halten 90 | F2: 5522 | G2: Bremgarten | H2: 11.09.1987 | J2: 20 | K2: 04.05.2022 | L2: 20 | M2: Geschäft | R2: Muster Michael Bremgarten | S2: Sehr geehrter Herr
A3: Muster | B3: Sonja | C3: 033 432 56 79 | E3: Heineweg 9 | F3: 8210 | G3: Wohlerauen | H3: 13.07.1988 | I3: sonjamus@wendy.com | J3: 20 | K3: 04.05.2022 | L3: 20 | M3: Passivmitglied | R3: Muster Sonja Wohlerauen | S3: Sehr geehrte Frau
A4: Muster | B4: André | C4: 055 555 55 55 | E4: Wegleiten 2 | F4: 5507 | G4: Tegerig | H4: 11.09.1990 | I4: zerzubi@world.com | J4: 20 | K4: 04.05.2022 | L4: 10 | M4: Passivmitglied | R4: Muster André Tegerig | S4: Sehr geehrter Herr

Sheet Gönner
A1: Nachname | B1: Vorname | C1: Telefon | D1: Handy | E1: Strasse | F1: Plz | G1: Ort | H1: Geb. | I1: E-Mail | J1: Betrag | K1: Zahldatum | L1: FF3 | M1: Firma | N1: FF5 | O1: FF6 | P1: FF7 | Q1: FF8 | R1: Buchungstext | S1: Anrede
A2: Ammacher | B2: Paul | D2: 055 345 21 84 | F2: 3600 | G2: Thun | J2: 20 | R2: Ammacher Paul Thun
A3: Gönner | B3: Christine | C3: 031 999 99 99 | E3: Loft | F3: 3888 | G3: Bern Süd | J3: 40 | R3: Gönner Christine Bern Süd | S3: Sehr geehrte Frau
A4: Gönner | B4: Kurt | D4: 078 232 52 45 | E4: Piazza Poulare 9 | F4: 3990 | G4: Lacomba | H4: 01.04.1975 | I4: koku@goole.com | J4: 20 | R4: Gönner Kurt Lacomba | S4: Sehr geehrter Herr
A5: Gönner | B5: Verena | D5: 078 333 44 55 | E5: Hochhaus 23 | F5: 4444 | G5: Rümlang | J5: 40 | R5: Gönner Verena Rümlang | S5: Sehr geehrte Frau
A6: Meissner | B6: Siegfried | C6: 031 921 08 61 | E6: Bodenacker 71 | F6: 3065 | G6: Bolligen | H6: 05.05.1988 | I6: meisssieg@wild.ch | J6: 20 | M6: Halzum | R6: Meissner Siegfried Bolligen | S6: Sehr geehrter Herr

Sheet Inserenten
A1: Nachname | B1: Vorname | C1: Telefon | D1: Handy | E1: Strasse | F1: Plz | G1: Ort | H1: nu | I1: E-Mail | J1: Betrag | K1: Zahldatum | L1: Kontakt | M1: Firma | N1: Adresse | O1: Rechnungsnr | P1: Inserat Grösse | Q1: WWW | R1: Buchungstext | S1: Anrede
A2: Inserent | B2: Sebastian | E2: Centralstrasse 22 | F2: 3800 | G2: Interlaken | J2: 130 | L2: Holger | M2: AXA Winterthur Hauptagentur | R2: AXA Winterthur Hauptagentur Inserent Sebastian | S2: Sehr geehrter Herr
A3: Inserent | B3: Albert | C3: 045 241 23 33 | E3: Dorfplatz 4 | F3: 7453 | G3: Nowhare | H3: 04.06.1993 | J3: 80 | L3: Peter | M3: Festbauten | R3: Festbauten Inserent Albert
A4: Inserent | B4: Günther | E4: Gygerweg 20 | F4: 3700 | G4: Spiez | J4: 240 | L4: Sabine | M4: Generalo Versicherungen | R4: Generalo Versicherungen Inserent Günther | S4: Sehr geehrter Herr

Sheet Sponsoren
A1: Nachname | B1: Vorname | C1: Telefon | D1: Handy | E1: Strasse | F1: Plz | G1: Ort | H1: Geburtstag | I1: E-Mail | J1: Betrag | K1: Zahldatum | L1: Kontakt | M1: Firma | N1: Adresse | O1: Vertrag | P1: Rechnungsnr | Q1: WWW | R1: Buchungstext | S1: Anrede
A2: Sponsor | B2: Flurin | C2: 0 | E2: Mittlere Strasse 67 | F2: 9566 | G2: Wetterau | J2: 150 | M2: Horst AG | P2: SP 01 | R2: Horst AG Sponsor Flurin | S2: Sehr geehrter Herr
A3: Sponsor | B3: Konstanze | E3: Hauptstrasse 43 | F3: 7453 | G3: Salzbrunnen | J3: 150 | L3: Homepage | M3: Baustein AG | P3: SP_02 | R3: Baustein AG Sponsor Konstanze | S3: Sehr geehrter Herr

Sheet Quittung
B1: Quittung: Musikgesellschaft X | I1: Korrex | J1: Drucken | K1: Tageskurse | L1: MwSt
B2: Nr: | C2: 20220010 | E2: Betrag
A3: Währung: | B3: CHF | F3: CHF | G3: 1200
A4: Kurs | B4: 1 | E4: MwSt | F4: 7.7 | G4: 92.4
E5: Total | F5: =B3 -> CHF | G5: 1292.4
A6: in Worten: | B6: Ein Tausend _Zwei Hundert _Zwei & Neunzig Fr./ & Vierzig Rp.
A8: von: | B8: Bucher Fritz Musikgesellschaft X
A10: für:
A12: Bez: | B12: Auftrittsgagen
A14: Ort: | B14: 3800 | C14: Interlaken | G14: Betrag dankend erhalten
D15: Visum:
B16: Datum: | C16: 16.12.2022
A33: KOPIE | B33: Quittung: Musikgesellschaft X
B34: Nr: | C34: 20220010 | E34: Betrag
A35: Währung: | B35: CHF | F35: CHF | G35: 1200
A36: Kurs | B36: 1 | E36: MwSt | F36: 7.7 | G36: 92.4
E37: Total | F37: =B35 -> CHF | G37: 1292.4
A38: in Worten: | B38: Ein Tausend _Zwei Hundert _Zwei & Neunzig Fr./ & Vierzig Rp.
A40: von: | B40: Bucher Fritz Musikgesellschaft X
A42: für:
A44: Bez: | B44: Auftrittsgagen
A46: Ort: | B46: 3800 | C46: Interlaken | G46: Betrag dankend erhalten
D47: Visum:
B48: Datum: | C48: 16.12.2022

Sheet Val (hidden)
A1: Briefliche Anrede | B1: Diverses | D1: 1x1/1 | E1: 470 | F1: Diverses | G1: Vereindaten | H1: Textbaustein Ausgaben (BauA) 8 | I1: Textbaustein Einahmen (BauE) 9 | J1: Textbaustein BauT | K1: Debitor | L1: Kreditor | M1: Beiträge | N1: KontoName | O1: Anfangsbestand | P1: IBAN | Q1: AppelTitel | S1: BeitragsTitel | T1: Beiträge | X1: Währung | Y1: Kurs | Z1: MWS | AB1: EU
A2: Sehr geehrte Damen und Herren | B2: Interlaken | D2: 1x1/2 | E2: 240 | F2: 32 | G2: Musikgesellschaft X | H2: Auftrag an | I2: Anlassbeitrag | J2: Kasse zu Bank | K2: Debi-Rechnung | L2: Kredi-Rechnung | M2: 100 | N2: Raiffeisen | O2: 2347.5 | P2: Bank1 | Q2: Ausflug | S2: Aktive | T2: 100 | W2: Schweiz | X2: CHF | Y2: 1 | Z2: 7.7 | AB2: Belgien
A3: Sehr geehrte Frau | B3: 3800 | D3: 1x1/4 | E3: 130 | F3: 35 | G3: 01.01.2022-31.12.2022 | H3: Blumen | I3: Auftrittsgage | J3: Bank zu Kasse | K3: Gage | L3: Barzahlung | M3: 50 | N3: Kasse V | O3: 3778.7 | P3: Kasse Vereinskassier | Q3: Fasnacht | S3: Junior | T3: 50 | W3: Europa Union | X3: EUR | Y3: 0.99 | Z3: 20 | AB3: Deutschland
A4: Sehr geehrte Mitarbeiterin und Mitarbeiter | B4: FALSE | D4: 1x1/8 | E4: 70 | F4: E:\AA_Excel\AE_Vebu\Bilder\LogoT | G4: 2022 | H4: Büromaterial | I4: Einnahmen Verkaufsstand | J4: Bank zu Post | K4: Mitgliederbeitrag | L4: Kreditkarte | M4: 0 | N4: Post | O4: 2745.8 | P4: Swisscom | Q4: Kurs | S4: Neuling | T4: 20 | W4: England | X4: GBP | Y4: 1.15 | Z4: 2.5 | AB4: Estland
A5: Sehr geehrter Herr | B5: murmel | D5: 3x1/8 | E5: 210 | F5: VeBu | G5: Bucher Fritz | H5: Car Reisen | I5: Eintrittbillette | J5: Post zu Bank | K5: Postfinace | L5: Spesen | M5: 0 | N5: Kasse Fest | O5: 559.4 | P5: Kasse Fest | Q5: Probe | S5: Ehren | T5: 0 | W5: USA | X5: USD | Y5: 0.93 | Z5: 3.7 | AB5: Finnland
A6: Guten Tag, Frau | B6: 4 | F6: E:\AA_Excel\AE_Vebu\BedAnl VeBu.pdf | G6: Revisor Arnold | H6: Dirigenten Honorar | I6: Fanartikelverkauf | J6: Post zu Kasse | K6: Verkauf | L6: Zinszahlung | M6: 0 | N6: Kasse PW | O6: 3000 | P6: Kasse Probeweekend | Q6: Reise | S6: Frei | T6: 20 | W6: Kanada | X6: CAD | Y6: 0.69 | Z6: 5 | AB6: Frankreich
A7: Guten Tag, Herr | F7: https://www.rates.bazg.admin.ch/home | G7: Revisorin Bettina | H7: Einkauszentrum | I7: Fasnacht | J7: Kasse zu Post | K7: Bareinnahme | M7: 0 | N7: Kasse Fa | O7: 1200 | P7: Kasse Fanartikel | Q7: Sitzung | S7: Gast | T7: 0 | W7: Australien | X7: AUD | Y7: 0.64 | Z7: 10 | AB7: Griechenland
A8: Hallo Frau | G8: Revisor 3 | H8: Geschenke | I8: Frondienst | J8: Kasse zu Kasse | K8: Spende | M8: 20 | N8: Kasse U | O8: 10000 | P8: Kasse Uniform | Q8: Training | S8: Passive | T8: 20 | W8: Island | X8: ISK | Y8: 0.66 | Z8: 16 | AB8: Irland
A9: Hallo Herr | G9: Revisor 4 | H9: Lokalmiete | I9: Geburtstagsfest | K9: Ertrag | N9: UBS | O9: 10830 | P9: Bank2 | Q9: Treffen | W9: Schweden | X9: SEK | Y9: 0.16 | Z9: 25 | AB9: Italien
A10: Liebe Frau | G10: 01.01.2022 | H10: Medien | I10: Gönner Spende | K10: Zinseinahme | M10: Startseite | Q10: Versammlung | W10: Norwegen | X10: NOK | Y10: 0.094 | Z10: 25 | AB10: Lettland
A11: Liebe Kolleginnen und Kollegen | G11: 31.12.2022 | H11: Mobiliar | I11: Spende ohne Namensangabe | M11: Journal | AB11: Litauen
G12: 2017-05-05 | H12: Noteneinkauf | I12: Ticketverkauf | AB12: Luxemburg,
H13: Prämie | I13: Vereinsreise Anzahlung | M13: Anlass | AB13: Malta
H14: Reperatur Instrumente | I14: gesammelte Spenden | M14: 45 | AB14: Niederlande,
H15: Shop | I15: unbekannter Spender | M15: Gönner Apéro | AB15: Oesterreich
H16: Transport | I16: Zinsen Bank | AB16: Portugal
H17: Vereinsbeiträge | AB17: Slowakei
H18: Verpflegung | AB18: Slowenien
H19: Versicherungen | AB19: Spanien
H20: Wareneinkauf | AB20: Zypern
F21: C:\Users\Martin\Documents\AA_Vebu | H21: Werbegeschenke
F22: C:\Users\Martin\Documents\AA_Vebu\Bilder\Logo.bmp
F23: C:\Users\Martin\Documents\AA_Vebu\BedAnl VeBu.pdf
M24: 13 | N24: 14 | O24: 15 | P24: 16 | R24: 18 | S24: 19 | T24: 20 | U24: 21 | V24: 22 | W24: 23 | X24: 24 | Y24: 25 | Z24: 26 | AA24: 27 | AB24: 28 | AC24: 29 | AD24: 30

Sheet Color (hidden)
A1: Farbname | B1: FarbIdx | C1: FarbHex (BGR) | D1: FarbRGB | E1: FarbeLong | J1: Testfarbe | L1: 13395456 | M1: Dodgerblue
A2: White | B2: 2 | C2: &HFFFFFF | D2: RGB(255, 255, 255) | E2: 16777215
A3: Whitesmoke | B3: 2 | C3: &HF5F5F5 | D3: RGB(245,245,245) | E3: 16119285
A4: Gainsboro | B4: 15 | C4: &HDCDCDC | D4: RGB(220,220,229) | E4: 14474460
A5: Silver | B5: 15 | C5: &HC0C0C0 | D5: RGB(192, 192, 192) | E5: 12632256
A6: Almond | B6: 19 | C6: &HEFDECD | D6: RGB(239,222,205) | E6: 13491951
A7: Yellow | B7: 6 | C7: &H00FFFF | D7: RGB(255,255,000) | E7: 65535
A8: Ivory | B8: 2 | C8: &HE0FFFF | D8: RGB(255, 255, 240) | E8: 15794175
A9: Cornsilk | B9: 19 | C9: &HDCF8FF | D9: RGB(255,248,220) | E9: 15071487
A10: Khaki | B10: 36 | C10: &H8CE6F0 | D10: RGB(240,230,140) | E10: 9234160
A11: Coldenrod | B11: 36 | C11: &HAAE8EE | D11: RGB(238,232,107) | E11: 7071982
A12: Bisque | B12: 19 | C12: &HC4E4FF | D12: RGB(255, 228, 196) | E12: 12903679
A13: DarkGreen | B13: 51 | C13: &H003300 | D13: RGB(0.51.0) | E13: 13056 | F13: Farbe Budget Haupttitel Einnahmen
A14: Green | B14: 10 | C14: &H008000 | D14: RGB(0.255,00) | E14: 32768 | F14: Farbe Budget Untertitel Einnahmen
A15: Gold | B15: 44 | C15: &H00D7FF | D15: RGB(255,215,000) | E15: 55295
A16: Bright Green | B16: 4 | C16: &H00FF00 | D16: RGB(000,255,000) | E16: 65280
A17: Chartreuse | B17: 43 | C17: &H00FF7F | D17: RGB(127,255,0 | E17: 65407
A18: Greenyellow | B18: 43 | C18: &H2FFFAD | D18: RGB(173,255,47) | E18: 3145645
A19: Light Green | B19: 48 | C19: &H33FF99 | D19: RGB(144,238,144) | E19: 9498256
A20: Springgreen | B20: 4 | C20: &H7FFF00 | D20: RGB(0, 255, 127) | E20: 8388352
A21: LightSeagreen | B21: 35 | C21: &HD3FF85 | D21: RGB(133, 255, 211) | E21: 13893509
A22: Pale Green | B22: 48 | C22: &H98FB98 | D22: RGB(152,251,152) | E22: 10025880
A23: Paleturqoise | B23: 20 | C23: &HEEEEAF | D23: RGB(175,238,238) | E23: 15658671
A24: Aquamarin | B24: 35 | C24: &HD4FF7F | D24: RGB(127, 255, 212) | E24: 13959039
A25: Light Green | B25: 35 | C25: &HCCFFCC | D25: RGB(204,255,204 | E25: 13434828 | F25: Farbe Budgetposition Einnahmen
A26: Blue | B26: 5 | C26: &HFF0000 | D26: RGB(0,0255 | E26: 16711680
A27: Powderblue | B27: 37 | C27: &HE6E0B0 | D27: RGB(176,224,230) | E27: 15130800
A28: Light Blue | B28: 37 | C28: &HEED7BD | D28: RGB(173,216,230) | E28: 15128749
A29: SteelBlue | B29: 15 | C29: &HFFCCCC | D29: RGB(176, 196, 222) | E29: 14599344
A30: Pale Blue | B30: 37 | C30: &HFFCC99 | D30: RGB(153, 204, 255) | E30: 16764057
A31: LightSkyblue | B31: 37 | C31: &HFF9999 | D31: RGB(135, 206, 250) | E31: 16436871
A32: Control | B32: 23 | C32: &HD77800 | D32: RGB(000,120,215) | E32: 14120960
A33: Dodgerblue | B33: 41 | C33: &HCC6600 | D33: RGB(030,144,255) | E33: 16748574
A34: Cornflower | B34: 17 | C34: &HED9564 | D34: RGB(100,149,237) | E34: 15570276
A35: Royalblue | B35: 41 | C35: &HE16841 | D35: RGB(65,105,225 | E35: 14772545
A36: Bronce | B36: 15 | C36: &H66D9FF | D36: RGB(255,217,102) | E36: 13082801
A37: Lavender | B37: 2 | C37: &HFF99CC | D37: RBG(230, 230, 250) | E37: 16443110
A38: Cyan | B38: 8 | C38: &HFFFF00 | D38: RGB(000, 255, 255) | E38: 16776960
A39: Light Cyan | B39: 20 | C39: &HFFFFCC | D39: RGB(204, 255, 255) | E39: 16777164
A40: Aqua | B40: 42 | C40: &HCCCC33 | D40: RGB(51,204,204) | E40: 13421619
A41: Teal | B41: 14 | C41: &H808000 | D41: RGB(0,128,128) | E41: 8421376
A42: Tan | B42: 15 | C42: &H8CB4D2 | D42: RGB(210, 180, 140) | E42: 9221330
A43: Red | B43: 3 | C43: &H0000FF | D43: RGB(255,0,0) | E43: 255
A44: Tomato | B44: 46 | C44: &H4763FF | D44: RGB(255,99,71) | E44: 4676351
A45: DarkRed | B45: 9 | C45: &H000080 | D45: RGB(128,0,0) | E45: 128 | F45: Farbe Budget Haupttitel Ausgaben
A46: Purpur | B46: 3 | C46: &H3C14DC | D46: RGB(220,20,60 | E46: 3937500
A47: Mangenta | B47: 7 | C47: &HFF00FF | D47: RGB(255,000 255) | E47: 16711935
A48: Hotpink | B48: 38 | C48: &HB469FF | D48: RGB(255,105,180 | E48: 11823615
A49: Rose | B49: 38 | C49: &HCC99FF | D49: RGB(255, 153, 204) | E49: 13408767
A50: LightPink | B50: 38 | C50: &HC1B6FF | D50: RGB(255,182,193) | E50: 12695295
A51: MistyRose | B51: 19 | C51: &HE1E4FF | D51: RGB(255,228,225) | E51: 14804223
A52: Orange | B52: 46 | C52: &H0066FF | D52: RGB(255, 102,0) | E52: 26367 | F52: Farbe Budget Untertitel Ausgaben
A53: Coral | B53: 22 | C53: &H7AA0FF | D53: RGB(255, 127, 80) | E53: 5275647
A54: Peru | B54: 45 | C54: &H0099FF | D54: RGB(255,153,0) | E54: 39423
A55: LightSalmon | B55: 22 | C55: &HA7A9FF | D55: RGB(255,160,122) | E55: 8036607
A56: Tan | B56: 40 | C56: &H99CCFF | D56: RGB(255,204,153) | E56: 10079487 | F56: Farbe BudgetPosition Ausgaben
A57: Orchid | B57: 38 | C57: &HD670DA | D57: RGB(218,112,214) | E57: 14053594
A58: Plum | B58: 38 | C58: &HDDA0DD | D58: RGB(221,160,221) | E58: 14524637
A59: Thistle | B59: 15 | C59: &HD8BFD8 | D59: RGB(216,191,216) | E59: 14204888
A60: Rot Akz 2 | B60: 15 | C60: &HB8B8E6 | D60: RGB(230,184,184) | E60: 12105958
A61: NavajoWhite | B61: 40 | C61: &HADDEFF | D61: RGB(255,222,173) | E61: 11394815
A62: Wheat | B62: 40 | C62: &HB3DEF5 | D62: RGB(245,222,179) | E62: 11788021
A63: Menue | B63: 24 | D63: RGB(197,217,241) | E63: 15849925
B64: -4142 | E64: 16777215
